bitfinex/quotes_ETHUSD_20220226
["timestamp","ask_amount","ask_price","bid_price","bid_amount"]
[1645897706029,0.3,2794.9,2794.6,1.06468596]
[1645897706030,0.47085171,2794.7,2794.6,1.06468596]
[1645897707486,0.47085171,2794.7,2794.5,8.26025063]
[1645897707684,0.47085171,2794.6,2794.5,8.26025063]
[1645897707888,0.47085171,2794.6,2794.5,0.90025063]
[1645897708284,0.47085171,2794.6,2794.5,0.89512]
[1645897708485,0.47085171,2794.6,2794.5,1.9476998]
[1645897710639,0.47085171,2794.6,2794.5,0.89512]
[1645897711038,15.07192717,2795.6,2794.5,0.89512]
[1645897711238,0.6764052,2795.1,2794.5,0.89512]
[1645897712040,1.1272691,2795.1,2794.5,0.89512]
[1645897712243,0.4508639,2795.0,2794.7,0.00513047]
[1645897712441,0.4508639,2794.9,2794.7,0.00513047]
[1645897712640,0.9764052,2795.1,2794.7,0.00513047]
[1645897712641,0.4508639,2794.8,2794.7,0.00513047]
[1645897713048,0.7508639,2794.8,2794.7,0.00513047]
[1645897713242,0.7508639,2794.8,2794.3,0.0037257]
[1645897713446,0.4508639,2794.7,2794.6,0.00513053]
[1645897714285,0.4508639,2794.7,2794.2,1.7938957]
[1645897714478,0.4508639,2794.6,2794.3,1.0887257]
[1645897714680,0.3,2794.8,2794.5,0.00513063]
[1645897715080,0.41214179,2794.7,2794.5,0.00513063]
[1645897715282,0.41214179,2794.6,2794.5,0.00513063]
[1645897715483,0.41214179,2794.6,2794.3,0.0037257]
[1645897715792,0.41214179,2794.5,2794.3,1.08861427]
[1645897715983,0.9764052,2795.2,2794.3,1.09233997]
[1645897716183,0.41211762,2795.1,2794.3,1.08861427]
[1645897716385,0.41211762,2795.1,2794.4,0.0037257]
[1645897716986,0.41211762,2795.1,2794.6,0.00513053]
[1645897718026,0.41211762,2795.1,2794.4,0.0037257]
[1645897718229,0.41198147,2795.0,2794.7,0.00513042]
[1645897718432,0.41198147,2794.9,2794.7,0.00513042]
[1645897718631,0.41198147,2794.8,2794.7,0.00513042]
[1645897719033,0.6764052,2795.1,2794.7,0.00513042]
[1645897719034,1.08838667,2795.1,2794.7,0.00513042]
[1645897719228,0.41198147,2795.0,2794.3,0.0037257]
[1645897719430,0.6764052,2795.1,2794.6,0.00513053]
[1645897719431,0.41198147,2794.9,2794.6,0.00513053]
[1645897719730,0.41198147,2794.8,2794.6,0.00513053]
[1645897719931,0.41198147,2795.1,2794.6,0.00513053]
[1645897720129,0.3,2794.8,2794.6,0.00513053]
[1645897720328,0.41198147,2794.7,2794.5,0.89511]
[1645897720531,0.41198147,2794.6,2794.5,0.89511]
[1645897720730,0.9764052,2795.2,2794.7,0.00513042]
[1645897720934,0.41186266,2795.1,2794.7,0.00513042]
[1645897721579,0.41186266,2795.1,2794.5,0.89511]
[1645897721784,0.41186266,2795.1,2794.8,0.00513037]
[1645897722786,0.41186266,2795.1,2794.5,0.89511]
[1645897722991,1.0,2795.4,2794.8,0.00513032]
[1645897722992,0.41186266,2795.0,2794.8,0.00513032]
[1645897723187,1.0,2795.4,2794.9,0.89471]
[1645897723387,0.41172116,2795.3,2794.9,0.89471]
[1645897723589,0.41172116,2795.2,2795.0,3.6431]
[1645897723783,0.41172116,2795.1,2795.0,0.1431]
[1645897723985,0.6764052,2795.7,2794.9,0.1431]
[1645897724283,0.6764052,2795.7,2795.1,3.19149797]
[1645897724483,4.40014045,2796.0,2795.1,3.19149797]
[1645897724484,0.41172116,2795.6,2795.1,3.19149797]
[1645897724683,0.41172116,2795.5,2795.1,3.19149797]
[1645897724883,0.41172116,2795.4,2795.1,3.19149797]
[1645897725083,0.41172116,2795.3,2795.1,1.57867323]
[1645897725332,0.41172116,2795.2,2795.1,1.57867323]
[1645897726138,0.41172116,2795.2,2795.1,1.40194797]
[1645897728139,0.6764052,2795.9,2795.1,2.40194797]
[1645897728339,1.05835125,2795.9,2795.1,4.19524367]
[1645897728539,0.38194605,2795.8,2795.1,4.19524367]
[1645897728744,0.38194605,2795.7,2795.1,4.19524367]
[1645897728940,0.38194605,2795.6,2795.1,4.19524367]
[1645897729181,0.38194605,2795.5,2795.1,4.19151797]
[1645897729382,0.38194605,2795.4,2795.1,4.19524367]
[1645897729582,1.05835125,2795.9,2795.1,4.19151797]
[1645897729780,0.38194605,2795.8,2795.1,4.19524367]
[1645897729982,0.38194605,2795.7,2795.1,4.19524367]
[1645897730183,0.38194605,2795.6,2795.1,4.19524367]
[1645897730383,5.3851,2796.1,2795.1,4.19151797]
[1645897730384,0.38194605,2795.5,2795.1,4.19151797]
[1645897730583,0.38194605,2795.4,2795.1,4.19524367]
[1645897730781,0.38194605,2795.3,2795.1,4.19151797]
[1645897730990,0.6764052,2796.0,2795.1,2.7932957]
[1645897731185,1.05848275,2796.0,2795.1,2.78957]
[1645897731389,1.05848275,2795.9,2795.1,2.7932957]
[1645897731587,0.38207755,2795.8,2795.1,2.7932957]
[1645897731788,0.38207755,2795.7,2795.1,2.7932957]
[1645897731990,0.38207755,2795.6,2795.1,1.7932957]
[1645897732189,0.38207755,2795.6,2795.1,1.78957]
[1645897732388,1.05848275,2795.9,2795.1,1.78957]
[1645897732587,0.38207755,2795.8,2795.1,1.7932957]
[1645897732844,0.38207755,2795.7,2795.1,1.7932957]
[1645897733039,1.05848275,2795.9,2795.1,1.7932957]
[1645897733240,1.05848275,2795.8,2795.1,1.7932957]
[1645897733442,0.38207755,2795.7,2795.1,1.7932957]
[1645897733641,0.6764052,2795.8,2795.1,1.7932957]
[1645897734047,0.38207755,2795.7,2795.1,1.7932957]
[1645897734243,0.38207755,2795.6,2795.1,1.7932957]
[1645897734441,0.38207755,2795.5,2795.1,1.78957]
[1645897734642,0.38207755,2795.4,2795.1,1.7932957]
[1645897734842,0.38207755,2795.3,2795.1,1.78957]
[1645897735043,0.6764052,2795.9,2795.1,1.7932957]
[1645897735244,0.6764052,2795.9,2795.1,1.78957]
[1645897735443,0.6764052,2795.9,2795.2,1.1184063]
[1645897735943,0.38236939,2796.0,2795.2,1.1184063]
[1645897735944,0.38236939,2795.8,2795.2,1.1184063]
[1645897736141,0.38236939,2795.7,2795.2,1.1184063]
[1645897736342,0.38236939,2795.6,2795.2,1.1184063]
[1645897736584,0.38236939,2795.5,2795.3,0.8947]
[1645897736781,0.38236939,2795.4,2795.3,0.8947]
[1645897737183,1.05877459,2796.0,2795.3,2.01326592]
[1645897737383,0.38236939,2795.9,2795.3,0.8947]
[1645897737586,0.6764052,2795.9,2795.3,0.8947]
[1645897737783,0.38236939,2795.8,2795.3,0.8947]
[1645897738183,0.38236939,2795.7,2795.3,0.8947]
[1645897738482,0.6764052,2796.0,2795.3,0.8947]
[1645897738483,0.38236939,2795.6,2795.3,0.8947]
[1645897738685,0.38236939,2795.5,2795.3,0.8947]
[1645897738885,0.38236939,2795.4,2795.3,0.8947]
[1645897739287,1.05877459,2795.9,2795.3,0.8947]
[1645897739489,0.38236939,2795.8,2795.3,0.8947]
[1645897739788,0.38236939,2795.7,2795.3,0.8947]
[1645897740086,0.38236939,2795.6,2795.3,0.8947]
[1645897740343,0.38236939,2795.5,2795.3,0.8947]
[1645897740528,0.6764052,2795.9,2795.3,0.8947]
[1645897740529,0.38236939,2795.4,2795.3,0.8947]
[1645897740933,0.38236939,2795.4,2795.3,2.01409548]
[1645897741130,0.6764052,2795.9,2795.3,2.01409548]
[1645897741332,0.6764052,2795.9,2795.3,0.8947]
[1645897743839,0.6764052,2795.7,2795.3,0.8947]
[1645897744089,1.05877459,2795.7,2795.3,0.8947]
[1645897744492,0.38236939,2795.6,2795.3,0.8947]
[1645897744690,0.38236939,2795.5,2795.3,0.8947]
[1645897744892,0.38236939,2795.4,2795.3,0.8947]
[1645897745089,0.38236939,2795.4,2795.3,2.01645954]
[1645897745293,0.38236939,2795.4,2795.3,0.8947]
[1645897745488,1.05877459,2795.8,2795.3,2.01647013]
[1645897745694,0.12730331,2795.2,2795.1,2.9491957]
[1645897745893,0.12730331,2795.2,2795.1,4.08390076]
[1645897746090,0.5096727,2795.2,2795.1,4.08390076]
[1645897746291,0.5096727,2795.2,2795.1,2.92800076]
[1645897747003,0.5096727,2795.2,2795.1,1.78957]
[1645897747396,0.5096727,2795.2,2795.1,2.928078]
[1645897748941,0.5096727,2795.2,2795.1,3.928078]
[1645897749141,0.5096727,2795.2,2795.1,2.928078]
[1645897749346,0.5096727,2795.2,2795.1,4.1750134]
[1645897749743,0.5096727,2795.2,2795.1,3.0365054]
[1645897750343,0.5096727,2795.2,2795.1,1.78957]
[1645897751243,0.5096727,2795.2,2795.1,2.92762314]
[1645897751443,0.5096727,2795.2,2795.1,4.10552923]
[1645897751688,0.5096727,2795.2,2795.1,4.10037123]
[1645897752686,0.5096727,2795.2,2795.1,2.92246514]
[1645897753693,0.5096727,2795.2,2795.0,0.8998402]
[1645897753889,0.5096727,2795.2,2795.0,0.0051302]
[1645897753890,3.88236939,2795.1,2795.0,0.0051302]
[1645897754090,3.88236939,2795.1,2794.9,7.36]
[1645897754091,0.38236939,2795.1,2794.9,7.36]
[1645897754291,0.12730331,2795.2,2794.7,1.78986]
[1645897754292,0.38236939,2795.0,2794.7,1.78986]
[1645897754490,3.62730331,2795.2,2794.7,1.78986]
[1645897754491,0.38236939,2794.9,2794.7,1.78986]
[1645897754696,0.38236939,2794.8,2794.7,1.78986]
[1645897754890,0.38236939,2794.8,2794.7,2.91853538]
[1645897758037,0.12730331,2795.2,2794.7,2.91853538]
[1645897758237,0.37458811,2795.1,2794.8,1.12867538]
[1645897759100,0.12730331,2795.2,2794.8,1.64913854]
[1645897759301,0.37463773,2795.1,2794.9,2.91796538]
[1645897759500,0.37463773,2795.1,2795.0,2.02332538]
[1645897760701,0.37463773,2795.1,2795.0,3.02332538]
[1645897761102,0.12730331,2795.2,2795.0,3.02332538]
[1645897761310,0.12730331,2795.2,2795.1,2.02329538]
[1645897761705,0.50210256,2795.2,2795.1,2.02329538]
[1645897764335,0.50210256,2795.2,2795.1,3.02329538]
[1645897765741,0.12730331,2795.2,2795.1,3.02329538]
[1645897766140,0.50244129,2795.2,2795.1,3.02329538]
[1645897766343,0.50244129,2795.2,2795.1,3.50249538]
[1645897766344,0.50251536,2795.2,2795.1,3.50249538]
[1645897766586,0.12730331,2795.2,2795.1,4.50249538]
[1645897766790,0.92289021,2796.2,2795.5,0.75485448]
[1645897766791,0.6764052,2796.1,2795.5,0.75485448]
[1645897767090,0.6764052,2796.1,2795.7,0.89453]
[1645897767291,0.6764052,2796.0,2795.8,1.12867538]
[1645897767494,0.6764052,2796.0,2795.9,1.17590102]
[1645897767495,1.04912013,2796.0,2795.9,1.17590102]
[1645897767798,0.00453845,2796.2,2796.1,0.89427]
[1645897768189,0.69455814,2796.4,2796.2,6.5]
[1645897768391,0.01815294,2796.4,2796.1,3.57711]
[1645897768591,0.6764052,2796.4,2796.1,1.78856]
[1645897769194,0.6764052,2796.3,2796.1,2.68287]
[1645897769392,0.6764052,2796.5,2796.1,2.68287]
[1645897769594,0.6764052,2796.4,2796.1,2.68287]
[1645897770189,0.6764052,2796.4,2796.1,1.78856]
[1645897770442,0.6764052,2796.3,2796.1,1.78856]
[1645897770636,1.93886483,2797.1,2796.1,1.78856]
[1645897770637,0.6764052,2796.2,2796.1,1.78856]
[1645897771434,0.6815337,2796.3,2796.1,1.78856]
[1645897772039,0.6764052,2796.3,2796.1,1.78856]
[1645897772243,0.6815337,2796.3,2796.1,1.78856]
[1645897773440,0.0051285,2796.3,2796.1,1.78856]
[1645897774486,0.6764052,2796.6,2796.1,1.78856]
[1645897774688,0.0051285,2796.3,2796.1,1.78856]
[1645897775690,0.00347073,2796.6,2796.1,1.78856]
[1645897775885,0.0051285,2796.3,2796.1,1.78856]
[1645897776586,0.92412209,2796.8,2796.1,1.78856]
[1645897776587,0.6315337,2796.5,2796.1,1.78856]
[1645897776793,0.92412209,2796.8,2796.1,1.78856]
[1645897776794,0.90014045,2796.7,2796.1,1.78856]
[1645897777193,0.0051285,2796.3,2796.1,1.78856]
[1645897778041,0.00347073,2796.6,2796.1,1.78856]
[1645897778241,0.90014045,2796.7,2796.1,1.78856]
[1645897778438,0.90014045,2796.6,2796.1,1.78856]
[1645897778838,0.90014045,2796.7,2796.1,1.78856]
[1645897779440,0.00512829,2796.5,2796.1,1.78856]
[1645897780447,0.00512829,2796.5,2796.0,0.89429]
[1645897780448,3.5,2796.5,2796.0,0.89429]
[1645897780655,3.5,2796.5,2795.5,8.84627811]
[1645897780656,0.90014045,2796.3,2795.5,8.84627811]
[1645897780851,0.516,2796.4,2795.6,7.9142]
[1645897780852,4.40014045,2796.2,2795.6,7.9142]
[1645897781046,0.90014045,2796.1,2795.7,0.00512974]
[1645897781246,1.20014045,2796.1,2795.7,0.00512974]
[1645897781593,3.5,2796.0,2795.7,0.00512974]
[1645897781796,3.5,2796.0,2795.6,7.9142]
[1645897781993,3.5,2796.0,2795.7,0.00512943]
[1645897782795,3.5,2796.0,2795.6,7.9142]
[1645897783196,3.5,2796.0,2795.7,0.00512939]
[1645897783597,4.40014045,2796.0,2795.7,0.00512939]
[1645897783998,4.40014045,2796.0,2795.6,7.9142]
[1645897784401,4.40014045,2796.0,2795.7,0.00512939]
[1645897785348,4.40014045,2796.0,2795.6,7.9142]
[1645897785541,4.40014045,2796.0,2795.7,0.00293481]
[1645897786240,3.5,2796.0,2795.7,0.00293481]
[1645897786441,3.5,2796.0,2795.6,7.9142]
[1645897786641,0.67667475,2795.8,2795.6,7.9142]
[1645897786847,0.67667475,2795.9,2795.6,6.30444597]
[1645897787044,0.3,2795.8,2795.6,6.30444597]
[1645897787244,0.67667475,2795.7,2795.6,6.30444597]
[1645897787545,4.47667475,2795.8,2795.6,6.30444597]
[1645897787746,0.35067051,2795.7,2795.6,6.30444597]
[1645897788744,1.02734526,2795.7,2795.6,6.30444597]
[1645897789605,0.35067051,2795.7,2795.6,6.30444597]
[1645897793574,0.65067051,2795.8,2795.6,6.30444597]
[1645897793780,0.35067051,2795.7,2795.6,6.30444597]
[1645897795574,1.32734526,2795.8,2795.6,6.30444597]
[1645897795773,0.35067051,2795.7,2795.6,6.30444597]
[1645897796377,0.35067051,2795.7,2795.6,6.30957882]
[1645897797289,0.35067051,2795.7,2795.6,6.30444597]
[1645897797909,4.52734526,2795.7,2795.6,6.30444597]
[1645897798693,1.02734526,2795.7,2795.6,6.30444597]
[1645897799494,4.52734526,2795.7,2795.6,6.30444597]
[1645897799894,3.85067051,2795.7,2795.6,6.30444597]
[1645897801338,1.02774867,2795.7,2795.6,6.30444597]
[1645897805686,0.67707816,2795.7,2795.6,6.30444597]
[1645897806796,0.67707816,2795.7,2795.6,4.69177164]
[1645897806797,1.02774867,2795.7,2795.6,4.69177164]
[1645897808339,1.32774867,2795.7,2795.6,4.69177164]
[1645897809040,0.65067051,2795.7,2795.6,4.69177164]
[1645897809840,0.35067051,2795.7,2795.6,4.69177164]
[1645897810244,0.65067051,2795.7,2795.6,4.69177164]
[1645897815334,1.32774867,2795.7,2795.6,4.69177164]
[1645897816541,0.65067051,2795.7,2795.6,4.69177164]
[1645897816744,4.15067051,2795.7,2795.6,4.69177164]
[1645897818353,5.66667051,2795.7,2795.6,4.69177164]
[1645897818552,10.5,2795.5,2795.1,0.1429]
[1645897818748,12.0,2795.2,2794.7,0.25]
[1645897818948,12.0,2795.2,2794.0,1.1718]
[1645897818949,0.90431105,2795.0,2794.0,1.1718]
[1645897819195,0.67824284,2794.7,2794.1,1.08818511]
[1645897819401,3.5,2794.6,2794.1,1.08818511]
[1645897819599,0.35067051,2794.5,2794.1,1.08818511]
[1645897819800,3.5,2794.4,2794.1,1.08818511]
[1645897820103,0.35067051,2794.3,2794.1,1.08818511]
[1645897820298,0.35067051,2794.2,2794.1,1.08818511]
[1645897824744,0.35067051,2794.2,2794.1,1.03818511]
[1645897826596,3.85067051,2794.2,2794.1,1.03818511]
[1645897826793,0.35067051,2794.2,2794.1,1.03818511]
[1645897827593,0.35067051,2794.2,2794.1,0.98818511]
[1645897829798,0.35067051,2794.2,2793.9,0.89526]
[1645897829998,0.8,2794.3,2794.0,0.00513757]
[1645897830644,0.3,2794.3,2794.0,0.00513757]
[1645897830839,0.1431,2794.8,2794.0,0.00513757]
[1645897831041,5.47824284,2794.9,2794.0,0.00370818]
[1645897831239,5.47824284,2794.9,2794.0,0.00884575]
[1645897832044,5.47824284,2794.9,2794.0,0.00370818]
[1645897832447,5.47824284,2794.9,2794.3,0.00513726]
[1645897832646,5.47824284,2794.9,2794.3,0.00186993]
[1645897833152,1.3,2794.8,2794.3,0.00186993]
[1645897833347,3.5,2794.7,2794.0,0.00370818]
[1645897833546,3.5,2794.7,2793.9,0.89526]
[1645897834201,5.1,2794.8,2793.9,0.89526]
[1645897834394,5.1,2794.8,2794.0,0.00370818]
[1645897834599,3.8,2794.8,2794.0,0.00370818]
[1645897836398,4.8,2794.8,2793.8,0.00370818]
[1645897836598,4.9431,2794.8,2793.8,0.00370818]
[1645897837203,4.9431,2794.8,2794.2,0.00513741]
[1645897838252,4.9431,2794.8,2794.0,0.00370818]
[1645897838447,4.9431,2794.8,2794.2,0.00513757]
[1645897839452,4.9431,2794.8,2794.0,0.00370818]
[1645897839649,4.9431,2794.8,2794.2,0.00513757]
[1645897839852,4.8,2794.8,2794.2,0.00513757]
[1645897840454,4.8,2794.8,2794.2,0.90031757]
[1645897840655,4.8,2794.8,2794.2,0.89518]
[1645897840861,4.8,2794.8,2794.2,0.90031757]
[1645897841153,3.8,2794.8,2794.2,0.90031757]
[1645897841796,0.3,2794.8,2794.2,0.89518]
[1645897841997,0.3,2794.9,2794.2,0.90031757]
[1645897842196,5.47824284,2795.0,2794.2,0.90031757]
[1645897842998,0.5,2794.4,2794.2,0.89518]
[1645897843199,3.8,2794.8,2794.2,0.90031765]
[1645897844200,3.8,2794.8,2794.2,0.89518]
[1645897844402,3.8,2794.8,2794.2,0.90031757]
[1645897845438,3.8,2794.8,2794.2,0.89518]
[1645897845643,3.8,2794.8,2794.2,0.90031757]
[1645897846149,0.3,2794.8,2794.4,1.0516355]
[1645897846444,4.62134284,2795.0,2794.4,1.0516355]
[1645897846646,0.97824284,2795.0,2794.5,0.89508]
[1645897846847,0.3,2795.0,2794.5,0.89508]
[1645897847047,0.97824284,2795.2,2794.5,0.89508]
[1645897847846,0.47768786,2795.1,2794.5,0.89508]
[1645897850712,0.47768786,2795.0,2794.5,0.89508]
[1645897850913,0.47768786,2795.1,2794.5,0.89508]
[1645897852517,1.1559307,2795.1,2794.5,0.89508]
[1645897852717,1.1559307,2795.1,2794.5,0.32571376]
[1645897853141,0.47768786,2795.0,2794.5,0.32571376]
[1645897853341,0.47768786,2794.9,2794.5,0.32571376]
[1645897853542,0.47768786,2794.8,2794.5,0.32571376]
[1645897853750,0.47768786,2794.7,2794.5,0.32571376]
[1645897853948,0.47768786,2794.6,2794.5,0.32571376]
[1645897855345,0.47768786,2794.6,2794.5,1.36010601]
[1645897855953,0.47768786,2794.6,2794.5,0.32571376]
[1645897856611,0.47768786,2794.6,2794.5,1.36045344]
[1645897857002,0.47768786,2794.6,2794.5,0.32571376]
[1645897857604,0.47768786,2794.6,2794.3,1.1886]
[1645897857805,0.47768786,2794.5,2794.4,1.0214421]
[1645897858206,0.67824284,2794.9,2794.4,1.0214421]
[1645897858806,0.67824284,2794.9,2794.4,2.21317128]
[1645897859004,0.67824284,2794.9,2794.5,1.0214421]
[1645897859908,0.47768786,2794.8,2794.5,1.0214421]
[1645897860108,0.47768786,2794.7,2794.5,1.0214421]
[1645897860345,0.47768786,2794.6,2794.5,1.0214421]
[1645897860646,0.67824284,2794.9,2794.5,1.0214421]
[1645897860845,1.1559307,2794.9,2794.5,1.0214421]
[1645897861046,0.47768786,2794.8,2794.5,1.0214421]
[1645897861246,0.47768786,2794.7,2794.6,1.0214421]
[1645897861650,1.1559307,2794.8,2794.4,1.0214421]
[1645897861860,0.47768786,2794.7,2794.5,1.25323]
[1645897862053,0.67824284,2795.2,2794.6,1.5227421]
[1645897862253,0.90431105,2795.5,2794.8,0.3582]
[1645897862254,0.48294207,2795.1,2794.8,0.3582]
[1645897862452,0.67824284,2795.3,2794.9,1.3796421]
[1645897862453,0.48294207,2795.0,2794.9,1.3796421]
[1645897862650,0.67824284,2795.3,2794.9,1.3796421]
[1645897862952,1.16118491,2795.3,2795.0,2.33321331]
[1645897863150,0.48294207,2795.2,2795.1,1.0214421]
[1645897864403,0.67824284,2795.5,2795.1,1.0214421]
[1645897865599,0.67824284,2795.5,2795.1,1.9161021]
[1645897865801,1.16035851,2795.6,2795.1,0.89466]
[1645897866003,0.48211567,2795.5,2795.2,1.02145964]
[1645897866205,0.48211567,2795.4,2795.2,1.02145964]
[1645897866505,0.48211567,2795.3,2795.2,1.02145964]
[1645897867308,0.67824284,2795.7,2795.2,1.02145964]
[1645897867509,1.16035851,2795.7,2795.2,1.02145964]
[1645897868345,1.16035851,2795.6,2795.1,1.78933]
[1645897868545,0.48211567,2795.5,2795.2,1.02087997]
[1645897868745,0.48211567,2795.4,2795.2,1.02087997]
[1645897868946,0.48211567,2795.3,2795.2,1.02087997]
[1645897869147,0.67824284,2795.6,2795.2,1.02087997]
[1645897869345,0.67824284,2795.6,2795.3,1.0]
[1645897869552,0.48211567,2795.5,2795.1,0.89466]
[1645897869746,0.48211567,2795.4,2795.1,0.89466]
[1645897869945,0.48211567,2795.3,2795.1,0.89466]
[1645897870148,0.48211567,2795.2,2795.0,4.69492121]
[1645897870349,0.67824284,2795.7,2795.1,1.0206601]
[1645897870548,1.15996832,2795.7,2795.1,1.0206601]
[1645897870750,0.48172548,2795.6,2795.1,1.0206601]
[1645897870951,0.48172548,2795.5,2795.1,1.0206601]
[1645897871156,0.48172548,2795.4,2795.0,3.10112121]
[1645897871353,0.48172548,2795.3,2795.0,3.10112121]
[1645897871612,0.48172548,2795.2,2795.0,3.10112121]
[1645897871804,0.48172548,2795.1,2795.0,1.78935]
[1645897872207,0.48172548,2795.3,2795.0,1.78935]
[1645897872405,0.48172548,2795.2,2795.0,1.78935]
[1645897872607,0.48172548,2795.1,2795.0,1.78935]
[1645897872809,0.67824284,2795.5,2795.0,1.66393661]
[1645897873106,0.67824284,2795.5,2795.0,0.64361951]
[1645897873306,1.15996832,2795.5,2795.0,0.64361951]
[1645897873505,0.48172548,2795.4,2795.0,0.64361951]
[1645897873706,0.48172548,2795.3,2795.0,0.64361951]
[1645897873906,0.48172548,2795.2,2795.0,0.64361951]
[1645897874107,0.48172548,2795.1,2795.0,0.64361951]
[1645897877045,0.48172548,2795.1,2795.0,1.68705524]
[1645897879206,0.48172548,2795.1,2795.0,0.64361951]
[1645897880306,0.48172548,2795.1,2795.0,1.68684233]
[1645897881608,0.48172548,2795.1,2795.0,5.18684233]
[1645897882010,0.48172548,2795.1,2795.0,1.68684233]
[1645897882612,0.48172548,2795.1,2795.0,5.18684233]
[1645897883048,0.48172548,2795.1,2795.0,1.68684233]
[1645897883851,0.48172548,2795.1,2795.0,5.18684233]
[1645897884856,0.48172548,2795.1,2795.0,6.18684233]
[1645897885756,0.00482094,2795.8,2795.0,6.18684233]
[1645897885956,0.45849985,2795.7,2795.1,1.04322282]
[1645897886608,1.60812461,2795.9,2795.1,1.04322282]
[1645897886609,0.67824284,2795.6,2795.1,1.04322282]
[1645897886801,0.45849985,2795.5,2795.1,1.04322282]
[1645897887001,0.45849985,2795.4,2795.1,1.04322282]
[1645897887301,0.45849985,2795.3,2795.1,1.04322282]
[1645897887500,0.45849985,2795.2,2795.1,1.04322282]
[1645897887899,1.13674269,2795.7,2795.1,1.04322282]
[1645897888103,0.45849985,2795.6,2795.1,1.04322282]
[1645897888307,0.45849985,2795.7,2795.1,1.04322282]
[1645897888504,0.45849985,2795.6,2795.1,1.04322282]
[1645897888705,0.45849985,2795.5,2795.1,1.04322282]
[1645897888904,0.67824284,2795.8,2795.1,1.04322282]
[1645897888905,1.1415747,2795.8,2795.1,1.04322282]
[1645897889106,0.45849985,2795.7,2795.1,1.04322282]
[1645897890006,0.45849985,2795.6,2795.1,1.04322282]
[1645897890211,0.45849985,2795.5,2795.1,1.04322282]
[1645897890468,0.45849985,2795.4,2795.1,1.04322282]
[1645897890770,0.45849985,2795.3,2795.1,1.04322282]
[1645897890972,0.45849985,2795.2,2795.1,1.04322282]
[1645897891268,0.67824284,2795.8,2795.1,1.04322282]
[1645897891269,1.1415739,2795.8,2795.1,1.04322282]
[1645897891471,0.45849985,2795.7,2795.1,2.83267282]
[1645897891673,0.45849985,2795.7,2795.2,1.04322282]
[1645897892072,1.13674269,2795.7,2795.2,1.04322282]
[1645897892273,0.45849985,2795.6,2795.2,1.04322282]
[1645897892472,0.67824284,2795.8,2795.2,1.04322282]
[1645897892473,0.45849985,2795.5,2795.2,1.04322282]
[1645897892673,0.45849985,2795.4,2795.2,1.04322282]
[1645897892878,0.45849985,2795.3,2795.2,1.04322282]
[1645897893275,1.13674269,2795.7,2795.1,1.78945]
[1645897893476,1.13674269,2795.7,2795.2,1.04447361]
[1645897893676,0.67824284,2795.7,2795.2,1.04447361]
[1645897893876,0.45849985,2795.6,2795.3,0.89472]
[1645897894104,0.45849985,2795.5,2795.3,0.34919364]
[1645897894295,1.13674269,2795.7,2795.3,0.34919364]
[1645897894495,0.45849985,2795.6,2795.3,0.34919364]
[1645897894695,0.45849985,2795.5,2795.3,0.34919364]
[1645897894898,0.45849985,2795.4,2795.3,0.34919364]
[1645897895099,0.45849985,2795.4,2795.3,1.40404926]
[1645897895298,0.45849985,2795.4,2795.3,0.34919364]
[1645897896102,0.45849985,2795.4,2795.3,1.40411941]
[1645897910395,0.45849985,2795.4,2795.3,2.40411941]
[1645897914050,0.45849985,2795.4,2795.3,1.34919364]
[1645897914251,0.45849985,2795.4,2795.3,2.40588083]
[1645897920447,1.0,2795.7,2795.3,2.40588083]
[1645897920651,0.45009346,2795.6,2795.4,1.05668719]
[1645897921049,0.45009346,2795.6,2795.5,1.05708479]
[1645897921250,0.45009346,2795.6,2795.5,1.05701116]
[1645897921450,0.45009346,2795.6,2795.4,1.05691961]
[1645897921657,0.45009346,2795.6,2795.5,1.05730102]
[1645897922051,0.45009346,2795.6,2795.4,1.05730102]
[1645897928558,0.45009346,2795.6,2795.3,0.34919364]
[1645897928958,0.45009346,2795.6,2795.4,1.05750955]
[1645897929161,0.45009346,2795.6,2795.3,0.34919364]
[1645897929558,0.45009346,2795.6,2795.4,1.05753756]
[1645897929757,0.45009346,2795.6,2795.3,0.34919364]
[1645897930161,1.1283363,2795.6,2795.4,1.05744613]
[1645897930364,0.45009346,2795.5,2795.4,1.05744613]
[1645897930759,0.45009346,2795.6,2795.4,1.05744613]
[1645897930960,0.45009346,2795.5,2795.4,1.05744613]
[1645897931160,0.45009346,2795.6,2795.4,1.05744613]
[1645897931361,0.45009346,2795.5,2795.4,1.05744613]
[1645897931611,0.45028853,2795.5,2795.4,1.05744613]
[1645897931806,0.45028853,2795.6,2795.4,1.05744613]
[1645897935666,0.45024627,2795.5,2795.4,1.05744613]
[1645897935860,0.45024627,2795.5,2795.4,1.57344613]
[1645897935861,0.45024478,2795.5,2795.4,1.57344613]
[1645897936061,1.0,2795.7,2795.5,2.68291]
[1645897936261,45.64205351,2796.0,2795.7,8.0]
[1645897936465,0.45018579,2795.9,2795.8,6.43357015]
[1645897936865,40.27637351,2796.0,2795.8,6.43357015]
[1645897937064,40.27637351,2796.0,2795.9,1.05682612]
[1645897937273,40.27637351,2796.0,2795.9,1.57282612]
[1645897937466,35.36041414,2796.0,2795.9,8.72612612]
[1645897937670,34.91072351,2796.0,2795.9,8.72612612]
[1645897937970,34.91072351,2796.0,2795.9,8.21012612]
[1645897938166,35.36575507,2796.0,2795.9,8.21012612]
[1645897938769,35.36575507,2796.0,2795.9,7.1533]
[1645897938968,35.36575507,2796.0,2795.9,8.20067058]
[1645897939205,35.36575507,2796.0,2795.9,8.2006207]
[1645897939505,35.36575507,2796.0,2795.9,8.20063579]
[1645897939706,35.36575507,2796.0,2795.9,7.1533]
[1645897939906,35.36575507,2796.0,2795.9,8.20081719]
[1645897940103,35.36575507,2796.0,2795.9,7.1533]
[1645897940506,35.36575507,2796.0,2795.9,8.200709]
[1645897940810,35.36575507,2796.0,2795.9,8.20070891]
[1645897942519,35.36575507,2796.0,2795.9,8.20046489]
[1645897943959,35.37196426,2796.0,2795.9,8.20046489]
[1645897944156,35.37195995,2796.0,2795.9,8.20046489]
[1645897944357,35.37195847,2796.0,2795.9,8.20046489]
[1645897944557,35.37186045,2796.0,2795.9,8.20046489]
[1645897944757,34.91072351,2796.0,2795.9,8.20046489]
[1645897944958,35.37185058,2796.0,2795.9,8.20046489]
[1645897945161,35.37185085,2796.0,2795.9,8.20046489]
[1645897945356,35.37185045,2796.0,2795.9,8.20046489]
[1645897945558,34.91072351,2796.0,2795.9,8.20046489]
[1645897945757,35.37175118,2796.0,2795.9,8.20046489]
[1645897945958,34.91072351,2796.0,2795.9,8.20046489]
[1645897946358,34.91072351,2796.0,2795.9,8.34336489]
[1645897946359,35.37177227,2796.0,2795.9,8.34336489]
[1645897946599,35.37177044,2796.0,2795.9,8.34336489]
[1645897946802,35.37177137,2796.0,2795.9,8.20046489]
[1645897947004,35.37177429,2796.0,2795.9,8.20046489]